Cogmind - Beta 13 @@@ ROGUE MODE // 2024.06.01 @ 15:12:04 Player: karotgaemin Result: Self-destructed Performance ------------- Evolutions (2) 1000 Regions Visited (4) 800 Robots Destroyed (41) 205 Value Destroyed (1173) 1173 Prototype IDs (2) 40 Alien Tech Used (0) 0 Bonus (22) 22 TOTAL SCORE: 3240 Bonus ------- High Alert Combat Kills 22 Cogmind --------- Core Integrity 291/550 Matter 196/300 Energy 100/100 System Corruption 0% Temperature Cool (49) Movement Core (450) Ox8 Location -8/Materials Parts ------- > --- POWER (1) -------- (None) > --- PROPULSION (2) --- (None) > --- UTILITY (6) ------ Large Storage Unit Visual Processing Unit Signal Interpreter Improved Targeting Computer Improved Targeting Computer > --- WEAPON (2) ------- Assault Cannon > --- INVENTORY (15) --- Wheel Armored Wheel Sensor Array Terrain Scanner Small Laser Particle Gun Heavy Assault Rifle Peak State ------------ > --- POWER ------------ Light Ion Engine > --- PROPULSION ------- Wheel Wheel > --- UTILITY ---------- Improved Heat Sink Large Storage Unit Visual Processing Unit Improved Sensor Array Signal Interpreter Improved Targeting Computer > --- WEAPON ----------- Field Laser Assault Cannon > --- INVENTORY -------- Armored Wheel Sensor Array Terrain Scanner Improved Targeting Computer Small Laser Particle Gun Heavy Assault Rifle Rocket Launcher [Rating: 22] Favorites ----------- Power Improved Ion Engine Engine Improved Ion Engine Power Core Light Nuclear Core Propulsion Armored Wheel Wheel Armored Wheel Utility Large Storage Unit Device Improved Heat Sink Storage Large Storage Unit Processor Improved Targeting Computer Weapon Small Laser Energy Gun Small Laser Energy Cannon Light EM Pulse Cannon Ballistic Gun Heavy Assault Rifle Ballistic Cannon Assault Cannon Launcher Rocket Launcher Build | -11 -10 -9 -9 -8 ------- Run | Yrd Mat Mat Min Mat Slots Evolved 4 | . . 2 . 2 Power . | . . . . . Propulsion . | . . . . . Utility 4 | . . 2 . 2 Weapon . | . . . . . Parts Attached 62 | 7 12 16 8 19 Power 11 | 1 3 2 1 4 Engine 8 | 1 1 1 1 4 Core 3 | . 2 1 . . Reactor . | . . . . . Propulsion 13 | 2 4 2 2 3 Treads . | . . . . . Leg . | . . . . . Wheel 13 | 2 4 2 2 3 Hover . | . . . . . Flight . | . . . . . Utility 14 | 1 2 5 1 5 Device 6 | . . 2 . 4 Storage 3 | 1 2 . . . Processor 5 | . . 3 1 1 Hackware . | . . . . . Protection . | . . . . . Artifact . | . . . . . Weapon 24 | 3 3 7 4 7 Energy Gun 12 | 2 2 4 1 3 Energy Cannon 1 | . . 1 . . Ballistic Gun 7 | 1 1 2 3 . Ballistic Cannon 2 | . . . . 2 Launcher 2 | . . . . 2 Special Weapon . | . . . . . Impact Weapon . | . . . . . Slashing Weapon . | . . . . . Piercing Weapon . | . . . . . Special Melee Weapon . | . . . . . Unidentified Prototypes . | . . . . . Parts Lost 22 | . 3 2 3 14 Power 6 | . 1 . 1 4 Propulsion 5 | . . . . 5 Utility 3 | . . . 1 2 Weapon 8 | . 2 2 1 3 Highest Loss Streak 8 | . 3 1 1 8 To Critical Strikes 1 | . . . . 1 Average Slot Usage (%) 92 | . 82 97 96 95 Engine 7 | . 2 10 8 8 Core 3 | . 10 . . . Wheel 22 | . 28 22 22 15 Device 11 | . . 21 . 16 Storage 11 | . 14 11 11 9 Processor 12 | . . 9 33 27 Energy Gun 11 | . 14 12 8 8 Ballistic Gun 8 | . 12 6 12 6 Naked Turns . | . . . . . Heaviest Build 35 | 14 28 35 33 35 Greatest Support 32 | 26 32 26 28 28 Greatest Overweight (x) 3 | . 1 1 1 3 Average Overweight (x) . | . . 1 1 1 Largest Inventory Capacity 15 | 8 15 15 15 15 Average Capacity 13 | 6 11 15 15 15 Most Carried 14 | 5 6 14 13 11 Average Carried 7 | 2 4 8 11 9 Final Capacity 15 | 8 15 15 15 15 Final Carried 13 | 2 5 13 12 7 Class Distribution -------------------- 57% | Mutant 23% | Scavenger-Mutant 15% | Skirmisher 4% | Scavenger-Skirmisher Dominant Class ---------------- Mutant | -10/Materials Scavenger-Mutant | -9/Materials Scavenger-Mutant | -9/Mines Skirmisher | -8/Materials Resources | -11 -10 -9 -9 -8 ----------- Run | Yrd Mat Mat Min Mat Matter Collected 989 | 195 244 192 130 228 Remotely . | . . . . . Salvage Created 1292 | . 402 448 147 295 Parts 94 | . 18 43 8 25 Haulers Intercepted . | . . . . . Recyclers Shooed . | . . . . . Parts Field Recycled . | . . . . . Retrieved Matter . | . . . . . Parts Self-Destructed . | . . . . . Prevented . | . . . . . Kills | -11 -10 -9 -9 -8 ------- Run | Yrd Mat Mat Min Mat Combat Hostiles Destroyed 37 | . 8 11 6 12 Guns 26 | . 7 8 6 5 Cannons 5 | . . 3 . 2 AOE 6 | . 1 . . 5 Classes Destroyed 6 | . 2 2 . 2 Builder 1 | . . . . 1 Watcher 3 | . 1 2 . . Swarmer 14 | . . 3 4 7 Grunt 16 | . 8 4 2 2 Sentry 6 | . . 4 . 2 Hunter 1 | . . . . 1 Best Kill Streak 5 | . 2 5 2 5 Combat Bots Only 5 | . 2 5 2 5 Max Kills in Single Turn 4 | . 1 1 1 4 Gunslinging . | . . . . . Exploded 4 | . 1 . . 4 Melee . | . . . . . Uniques/NPCs Destroyed . | . . . . . Combat | -11 -10 -9 -9 -8 -------- Run | Yrd Mat Mat Min Mat Hostile Shots Fired 279 | . 58 52 29 140 Missed 76 | . 15 12 6 43 Damage Taken 2739 | . 579 524 234 1402 Core 532 | . 203 70 . 259 Absorbed by Shields . | . . . . . Core Remaining (%) 66 | 100 18 . 82 . Volleys Fired 130 | . 36 35 15 44 Largest 2 | . 2 2 2 2 Hottest 107 | . 70 106 79 107 Shots Fired 243 | . 68 66 29 80 Gun 205 | . 68 52 29 56 Cannon 34 | . . 14 . 20 Launcher 4 | . . . . 4 Special . | . . . . . Kinetic 107 | . 32 23 15 37 Thermal 101 | . 19 29 14 39 Explosive 4 | . . . . 4 Electromagnetic 31 | . 17 14 . . Robot Hit Streak 14 | . 12 10 14 9 Robot Miss Streak 4 | . 2 3 2 4 Penetration Max . | . . . . . Secondary Targets 1 | . 1 . . . Max Gunslinging Chain 1 | . 1 . . . Shots Hit Robots 164 | . 50 46 19 49 Core Hits 79 | . 20 23 9 27 Critical Kills . | . . . . . Critical Parts Destroyed . | . . . . . Critical Strikes 3 | . . 1 1 1 Burn 3 | . . 1 1 1 Melee Attacks . | . . . . . Impact . | . . . . . Slashing . | . . . . . Piercing . | . . . . . Sneak Attacks . | . . . . . Combat Hostiles . | . . . . . Follow-up Attacks . | . . . . . Damage Inflicted 2825 | . 585 686 275 1279 Guns 1849 | . 585 471 275 518 Cannons 635 | . . 215 . 420 Explosions 341 | . . . . 341 Melee . | . . . . . Ramming . | . . . . . Kinetic 1220 | . 282 201 120 617 Thermal 914 | . 168 270 155 321 Explosive 341 | . . . . 341 Electromagnetic 350 | . 135 215 . . Impact . | . . . . . Slashing . | . . . . . Piercing . | . . . . . Highest Corruption . | . . . . . Average Corruption . | . . . . . Corruption Purged . | . . . . . Corruption Blocked . | . . . . . Overload Shots . | . . . . . Overflow Damage 10 | . . . . 10 Projectiles . | . . . . . Explosions 10 | . . . . 10 Melee . | . . . . . Knockbacks 8 | . . . . 8 Impact . | . . . . . Kinetic 7 | . . . . 7 Secondary 1 | . . . . 1 Self-Inflicted Damage 49 | . . . . 49 Shots 1 | . . . . 1 Rammed . | . . . . . Targets Rammed . | . . . . . Kicked . | . . . . . Crushed . | . . . . . Highest Temperature 162 | . 162 36 45 63 Average Temperature 34 | . 45 10 13 33 Received Heat Transfer 1125 | . 309 219 66 531 Siege Activations . | . . . . . Robots Corrupted . | . . . . . Combat Hostiles . | . . . . . Parts Fried 1 | . . 1 . . Impact Corruptions . | . . . . . Robots Melted . | . . . . . Combat Hostiles . | . . . . . Parts Melted 3 | . . 1 1 1 Heat Transferred 2463 | . 411 778 481 793 Parts Sabotaged . | . . . . . Parts Stolen . | . . . . . Parts Stripped . | . . . . . Power Chain Reactions . | . . . . . Alert | -11 -10 -9 -9 -8 ------- Run | Yrd Mat Mat Min Mat Peak Influence 455 | . 157 268 250 455 Initial 97 | . . 48 80 97 Average 156 | . 66 147 211 300 Maximum Alert Level 2 | . . 1 1 2 Low Security (%) 64 | 100 100 59 35 31 Level 1 28 | . . 40 64 36 Level 2 6 | . . . . 32 Level 3 . | . . . . . Level 4 . | . . . . . Level 5 . | . . . . . High Security . | . . . . . Max Security . | . . . . . Squads Dispatched 7 | . 1 2 . 4 Investigation 3 | . 1 1 . 1 Extermination . | . . . . . Reinforcement 4 | . . 1 . 3 Assault . | . . . . . Garrison . | . . . . . Intercept . | . . . . . Searches Triggered . | . . . . . Construction Impeded . | . . . . . Haulers Reinforced . | . . . . . Active Scanning Responses . | . . . . . Cargo Convoy Interrupts . | . . . . . Stealth | -11 -10 -9 -9 -8 --------- Run | Yrd Mat Mat Min Mat Distress Signals 4 | . 1 1 . 2 Communications Jammed . | . . . . . Distress Signals . | . . . . . Times Spotted 67 | . 13 18 9 27 Peak Tracking Total 6 | . 4 4 4 6 Tactical Retreats 5 | . 2 1 1 1 Traps | -11 -10 -9 -9 -8 ------- Run | Yrd Mat Mat Min Mat Traps Triggered 3 | . 2 1 . . Indirectly . | . . . . . Trap Hack Attempts . | . . . . . Triggered . | . . . . . Disarmed . | . . . . . Reprogrammed . | . . . . . Reused . | . . . . . Traps Extracted . | . . . . . Installed . | . . . . . Triggered . | . . . . . Machines | -11 -10 -9 -9 -8 ---------- Run | Yrd Mat Mat Min Mat Machines Disabled 2 | . 1 . . 1 Max in Single Turn 1 | . 1 . . 1 Machines Repaired . | . . . . . Machines Dismantled . | . . . . . Machines Sabotaged . | . . . . . Overloaded Fab Kills . | . . . . . Hacking | -11 -10 -9 -9 -8 --------- Run | Yrd Mat Mat Min Mat Machines Accessed 1 | . 1 . . . Terminals 1 | . 1 . . . Fabricators . | . . . . . Repair Stations . | . . . . . Recycling Units . | . . . . . Scanalyzers . | . . . . . Garrison Access . | . . . . . Total Hacks 2 | . 2 . . . Successful 2 | . 2 . . . Failed . | . . . . . Catastrophic . | . . . . . Database Lockouts . | . . . . . Manual . | . . . . . Terminals 2 | . 2 . . . Fabricators . | . . . . . Repair Stations . | . . . . . Recycling Units . | . . . . . Scanalyzers . | . . . . . Garrison Access . | . . . . . Terminal Hacks 2 | . 2 . . . Prototype ID Bank 1 | . 1 . . . Dispatch Records 1 | . 1 . . . Fabricator Hacks . | . . . . . Repair Station Hacks . | . . . . . Recycling Unit Hacks . | . . . . . Scanalyzer . | . . . . . Garrison Access Hacks . | . . . . . Unauthorized Hacks . | . . . . . Terminals . | . . . . . Fabricators . | . . . . . Repair Stations . | . . . . . Recycling Units . | . . . . . Scanalyzers . | . . . . . Garrison Access . | . . . . . Data Cores Recovered . | . . . . . Used . | . . . . . Hacking Detections . | . . . . . Full Trace Events . | . . . . . Feedback Events . | . . . . . Feedback Blocked . | . . . . . Robot Schematics Acquired . | . . . . . Robots Built . | . . . . . Authchips . | . . . . . Time . | . . . . . Total Robot Build Rating . | . . . . . Part Schematics Acquired . | . . . . . Parts Built . | . . . . . Authchips . | . . . . . Time . | . . . . . Total Part Build Rating . | . . . . . Parts Repaired . | . . . . . Time . | . . . . . Parts Recycled . | . . . . . Recycled Matter . | . . . . . Retrieved Matter . | . . . . . Retrieved Components . | . . . . . Parts Scanalyzed . | . . . . . Part Schematics Acquired . | . . . . . Parts Damaged . | . . . . . Bothacking | -11 -10 -9 -9 -8 ------------ Run | Yrd Mat Mat Min Mat Used RIF Installer . | . . . . . Robots Hacked . | . . . . . Non-combat . | . . . . . Combat . | . . . . . Robot Hacks Applied . | . . . . . Relay Couplers Released . | . . . . . Fabnet Peak Effective % . | . . . . . Robots Rewired . | . . . . . Allies Hacked . | . . . . . Hacks Repelled . | . . . . . Allies | -11 -10 -9 -9 -8 -------- Run | Yrd Mat Mat Min Mat Total Allies . | . . . . . Largest Group . | . . . . . Highest-Rated Group . | . . . . . Highest-Rated Ally . | . . . . . Total Orders . | . . . . . Ally Attacks . | . . . . . Total Damage . | . . . . . Kills . | . . . . . Allies Corrupted . | . . . . . Allies Melted . | . . . . . Intel | -11 -10 -9 -9 -8 ------- Run | Yrd Mat Mat Min Mat Robot Analysis Total . | . . . . . Derelict Logs Recovered 1 | . . . 1 . Drone Launches . | . . . . . Drone Recoveries . | . . . . . Exploration | -11 -10 -9 -9 -8 ------------- Run | Yrd Mat Mat Min Mat Turns Passed 1911 | 54 591 676 196 394 Spaces Moved 1278 | 46 446 488 125 173 Core 6 | 6 . . . . Treads . | . . . . . Legs . | . . . . . Wheels 1272 | 40 446 488 125 173 Hover . | . . . . . Flight . | . . . . . Fastest Speed 50 | 50 80 105 105 95 Average Speed 100 | 84 95 105 108 103 Slowest Speed 125 | 90 105 105 110 125 Overloaded Moves . | . . . . . Propulsion Burnouts . | . . . . . Robots Hopped . | . . . . . Cave-ins Triggered . | . . . . . Exploration Rate (%) 34 | 3 67 45 33 22 Regions Visited 4 Branch Regions 1 Pre-discovered Areas 1 | . . . 1 . Known Exits Taken 1 | . . . 1 . Unknown Exits Taken 3 | 1 1 1 . . Scrap Searched . | . . . . . Spaces Dug . | . . . . . Terrain Destroyed 33 | . . . . 33 Melee . | . . . . . Projectile 1 | . . . . 1 AOE 32 | . . . . 32 Terrain Rammed . | . . . . . Walls Destroyed . | . . . . . Machines Disabled . | . . . . . Actions | -11 -10 -9 -9 -8 --------- Run | Yrd Mat Mat Min Mat Total 1644 | 59 544 583 154 304 Wait 127 | . 39 23 3 62 Move 1274 | 45 445 487 124 173 Hop . | . . . . . Pick Up 43 | 7 9 18 3 6 Fast Attach 1 | 1 . . . . Attach 27 | 5 3 5 3 11 Detach . | . . . . . Swap 34 | 1 9 11 5 8 Drop 8 | . 3 4 1 . Fire 130 | . 36 35 15 44 Melee . | . . . . . Ram . | . . . . . Kick . | . . . . . Crush . | . . . . . Escape Stasis . | . . . . . Rewire . | . . . . . Trap . | . . . . . Miscellaneous . | . . . . . Route ------- -11/Scrapyard -10/Materials (discovered 4 exits: [*Mat x3] / [*Min]) -9/Materials (discovered 2 exits: *Mat / [*Min]) -9/Mines -8/Materials History --------- Turn | Location | Event 12 | -11/Scrapyard | Discovered new exit (range 16) 55 | -11/Scrapyard | Entered Materials 267 | -10/Materials | Lost 3 parts (1p2w) 279 | -10/Materials | Discovered new exit (range 3) 332 | -10/Materials | Discovered new exit (range 14) 337 | -10/Materials | Build established: Mutant 404 | -10/Materials | Discovered new exit (range 5) 501 | -10/Materials | Core integrity fell below 50% 617 | -10/Materials | Discovered new exit (range 16) 633 | -10/Materials | Core integrity fell below 20% 646 | -10/Materials | Entered another Materials area 646 | -9/Materials | Evolved 2 slots: Utility x2 1203 | -9/Materials | Discovered new exit (range 14) 1281 | -9/Materials | Discovered new exit (range 16) 1290 | -9/Materials | Build established: Scavenger-Mutant 1322 | -9/Materials | Entered Mines 1376 | -9/Mines | Learned location of Storage (-7) 1468 | -9/Mines | Joined a pair of Derelicts in attacking an 0b10 outpost 1506 | -9/Mines | Discovered new exit (range 9) 1515 | -9/Mines | Received a Rocket Launcher from a helpful Derelict 1515 | -9/Mines | Identified exit to Materials 1518 | -9/Mines | Entered Materials 1518 | -8/Materials | Evolved 2 slots: Utility x2 1675 | -8/Materials | Lost 4 parts (1p2n1w) 1912 | -8/Materials | Self-destructed Last Messages --------------- Wheel destroyed. U-05 Engineer lays Concrete. U-05 Engineer builds a Wall. G-50 Soldier knocked back. Wheel destroyed. U-05 Engineer lays Concrete. K-01 Serf collects debris. U-05 Engineer lays Concrete. G-50 Soldier knocked back. U-05 Engineer lays Concrete. K-01 Serf collects debris. Lgt. Ion Engine destroyed. U-05 Engineer lays Concrete. G-50 Soldier knocked back. U-05 Engineer lays Concrete. K-01 Serf collects debris. U-05 Engineer lays Concrete. G-50 Soldier knocked back. K-01 Serf collects debris. U-05 Engineer lays Concrete. Map ----- +----------------------------------------------------+ | | | | | | | | | | | | | | | ?????????????????????????????????????????????????? | | ?????????????????????????????????????????????????? | | ?????????????????????????????????????????????????? | | ?????????????????????#####???????????????????????? | | ?????????????????????+ #######????????????????? | | ???????????????# ""??# ######???????????? | | ???????????????# "T??# ??????????? | | ???????????????# ?+ ?????????? | | ???????????????# ?# +????????? | | ??????????? ???# # #????????? | | ???????????? ?#] # #????????? | | ?????????????" ## # #+???????? | | ??????????????? % ?#?????? | | ???????????????## g #??????? | | ???????????????# #??????? | | ???????????????? wu % m #??????? | | ??????????????????? %% #??????? | | ?????????????????????#; % #??????? | | ??????????????????????# k@= w #??????? | | ??????????????????????# g=* +??????? | | ??????????????????????# #?????? ??? | | ??????????????????????# %! #########?? | | ??????????????????????# ! ##! #?? | | ??????????????????????# ## #?? | | ??????????????????????# %% ## "" ##? | | ??????????????????????# ## "T #?? | | ??????????????????????# ### "" *%#?? | | ??????????????????????# #?# [%%#?? | | ??????????????????????# #?#####+#### | | ??????????????????????# #?????#=#?# | | ??????????????????????#######+### #######=#?# | | ???????????????????????# #?# #?#/ | | ???????????????????????# "S #?# #?# | | ???????????????????????# """ ### ### | | ???????????????????????# "" + | | ???????????????????????# ############## = | | ???????????????????????# = #???# ! =# | | ???????????????????????#####%##???# [[ | | ???????????????????????????###????# """ "" | | ??????????????????????????????????# """ "" | | ??????????????????????????????????# """ "" # = | | ??????????????????????????????????# # | | ??????????????????????????????????# # | +----------------------------------------------------+ Best States ------------- Heat Dissipation 45 Energy Generation 14 Energy Capacity 265 Matter Stores 300 Matter Capacity 300 Sight Range 18 Robot Scan Range 15 Terrain Scan Range 14 Terrain Scan Density 10 Evasion (%) 44 Targeting Accuracy 12 Item Schematics ----------------- None Robot Schematics ------------------ None Fabricated ------------ Nothing Alien Tech Used ----------------- None Achievements -------------- None Challenges ------------ None Game ------ Seed RiotAntimatterNanovents Manual? 0 Play Time 00:18:08 Cumulative 11.0 hours Start 2024.06.01 @ 14:52:01 End 2024.06.01 @ 15:12:04 Sessions 1 Manual Loads 0 Difficulty Rogue Special Mode None Game No. 30 Rogue 30 Adventurer 0 Explorer 0 Win Type - Total 0 Types 0/0/0/0/0/0/0/0/0 Lore% 8 Gallery% 22 Achievement% 16 Wizard Run 0 Options --------- Layout 1 ASCII 0 Keyboard 0 Movement Mouse Keybinds 0 Fullscreen 2 Font 24/Smallcaps Map View 50x35 Zoom Use 0% Tactical HUD 0 Map Filters NONE Filters NONE Steam 1 RUN: 22ab1219-cb6b-466a-a56a-840f8d7ed180